bitfinex-derivatives/quotes_BTCF0:USTF0_20210707
["timestamp","ask_amount","ask_price","bid_price","bid_amount"]
[1625636904792,1.59332207,34761.0,34760.0,2.20384135]
[1625636904912,1.59332207,34761.0,34760.0,2.50192135]
[1625636905456,1.59332207,34761.0,34760.0,1.4895268]
[1625636905877,1.59332207,34761.0,34760.0,1.97067768]
[1625636905994,1.59332207,34761.0,34760.0,1.95591468]
[1625636907078,1.59332207,34761.0,34760.0,2.97272523]
[1625636907315,0.24057544,34761.0,34760.0,1.95591468]
[1625636909178,0.24057544,34761.0,34760.0,2.97252559]
[1625636909418,0.24057544,34761.0,34760.0,1.95591468]
[1625636910139,0.24057544,34761.0,34760.0,2.97220644]
[1625636911524,1.35193267,34763.0,34760.0,2.97220644]
[1625636911705,1.35193267,34763.0,34760.0,1.95591468]
[1625636911825,1.35193267,34763.0,34760.0,1.45733591]
[1625636911949,1.35193267,34763.0,34762.0,0.50801481]
[1625636912187,1.36441237,34763.0,34762.0,0.50801481]
[1625636912607,1.36441237,34763.0,34762.0,0.33867654]
[1625636912847,1.36441237,34763.0,34762.0,0.50801415]
[1625636913749,0.0124797,34763.0,34762.0,0.50801415]
[1625636914228,0.0124797,34763.0,34762.0,0.59264483]
[1625636914708,0.0124797,34763.0,34762.0,0.33867654]
[1625636915429,0.0124797,34763.0,34762.0,0.50789839]
[1625636915608,0.0124797,34763.0,34762.0,0.25383191]
[1625636916089,0.0124797,34763.0,34762.0,0.59226744]
[1625636916211,1.59117021,34764.0,34762.0,0.59226744]
[1625636916571,0.01247919,34763.0,34762.0,0.25383191]
[1625636916934,0.01247919,34763.0,34762.0,0.59227085]
[1625636917175,0.01247919,34763.0,34762.0,0.50766079]
[1625636917296,0.24057544,34764.0,34762.0,0.50766079]
[1625636917416,0.24057544,34764.0,34763.0,0.08459873]
[1625636917657,1.59119731,34764.0,34763.0,5.146]
[1625636917837,1.6036767,34764.0,34763.0,5.146]
[1625636918381,0.25305483,34764.0,34763.0,5.23059897]
[1625636920301,0.25305483,34764.0,34763.0,0.08459897]
[1625636920601,0.25305483,34764.0,34762.0,0.59225852]
[1625636920902,0.01247936,34763.0,34762.0,0.59225852]
[1625636921021,0.01247936,34763.0,34762.0,0.50766079]
[1625636921321,0.01247936,34763.0,34762.0,0.59225636]
[1625636921441,0.01247936,34763.0,34762.0,4.82696079]
[1625636922584,0.01247936,34763.0,34762.0,4.3193]
[1625636922827,0.01247936,34763.0,34762.0,4.32406776]
[1625636923186,0.01247936,34763.0,34762.0,4.3193]
[1625636923607,0.01247936,34763.0,34762.0,4.82684002]
[1625636923727,0.01247936,34763.0,34762.0,4.3193]
[1625636924270,0.01247936,34763.0,34762.0,4.83160848]
[1625636924570,0.01247936,34763.0,34762.0,4.66242827]
[1625636925472,0.0124793,34764.0,34762.0,4.88825827]
[1625636925653,0.24057544,34768.0,34763.0,1.69164359]
[1625636925833,0.24057544,34768.0,34767.0,0.33831846]
[1625636926072,0.057,34771.0,34767.0,1.15773931]
[1625636926194,0.01244511,34768.0,34767.0,1.16252211]
[1625636926432,0.01244495,34770.0,34767.0,1.15773931]
[1625636926674,0.01244495,34770.0,34769.0,0.50738672]
[1625636926795,1.35339593,34772.0,34769.0,0.85049672]
[1625636927093,0.0124498,34771.0,34770.0,0.08935231]
[1625636927334,0.0124498,34771.0,34770.0,0.00477834]
[1625636928056,1.36510369,34771.0,34768.0,0.08455314]
[1625636928357,0.01244977,34770.0,34769.0,0.00477832]
[1625636928657,0.01244977,34770.0,34768.0,0.08455314]
[1625636928777,0.01244977,34770.0,34768.0,0.25365837]
[1625636929438,0.01244977,34770.0,34768.0,0.08455314]
[1625636929863,0.01244977,34770.0,34767.0,1.31356787]
[1625636930580,0.01244977,34770.0,34768.0,0.00477845]
[1625636930822,0.01244977,34770.0,34767.0,1.07299243]
[1625636931846,0.01244977,34770.0,34768.0,0.08453656]
[1625636932327,0.01244977,34770.0,34768.0,0.2535801]
[1625636932573,1.3523765,34772.0,34768.0,0.08453656]
[1625636932749,0.01252481,34769.0,34767.0,1.072927]
[1625636933171,0.01252495,34770.0,34767.0,1.072927]
[1625636933472,0.01252546,34768.0,34767.0,0.73471443]
[1625636933708,0.01252495,34770.0,34767.0,0.73946644]
[1625636933949,0.01252495,34770.0,34767.0,0.73471443]
[1625636934496,0.01252495,34770.0,34767.0,1.07280039]
[1625636934916,0.01252495,34770.0,34768.0,0.08452831]
[1625636935637,0.01252495,34770.0,34769.0,0.08452637]
[1625636935996,0.01252495,34770.0,34768.0,0.50715819]
[1625636936178,1.36464313,34771.0,34768.0,0.08452708]
[1625636936416,0.01252492,34769.0,34767.0,1.0728336]
[1625636936656,0.01252492,34770.0,34767.0,0.73472527]
[1625636936838,0.01252492,34770.0,34767.0,1.07280542]
[1625636937137,0.01252492,34770.0,34767.0,0.73472527]
[1625636937256,0.01252492,34770.0,34767.0,1.0728454]
[1625636937739,0.01252492,34770.0,34768.0,0.08453015]
[1625636937978,0.01252492,34770.0,34767.0,0.98832518]
[1625636937979,0.01252492,34770.0,34767.0,1.07285525]
[1625636939241,0.01252492,34770.0,34768.0,0.08453557]
[1625636941403,0.01252492,34770.0,34767.0,1.07287282]
[1625636941524,1.36547973,34770.0,34767.0,1.07287282]
[1625636941767,0.01252492,34770.0,34767.0,1.07287282]
[1625636942005,0.0125254,34769.0,34767.0,0.56569852]
[1625636942245,0.0125254,34769.0,34767.0,1.07298029]
[1625636942485,0.0125254,34769.0,34768.0,0.084546]
[1625636942846,0.01252504,34770.0,34768.0,0.084546]
[1625636943086,0.01252502,34769.0,34768.0,0.084546]
[1625636943625,0.01252502,34770.0,34768.0,0.084546]
[1625636943928,1.36554078,34770.0,34768.0,0.084546]
[1625636944476,0.01252505,34769.0,34768.0,0.25365228]
[1625636944890,0.01252505,34769.0,34768.0,0.59182984]
[1625636945010,0.01252502,34770.0,34768.0,0.59182984]
[1625636945132,0.01252502,34770.0,34768.0,0.83045984]
[1625636945256,0.01252505,34769.0,34768.0,0.83045984]
[1625636945493,0.01252499,34770.0,34768.0,0.83045984]
[1625636946334,0.01252499,34770.0,34769.0,0.08448685]
[1625636947057,1.36615832,34770.0,34768.0,0.9733002]
[1625636947483,0.012515,34769.0,34768.0,0.7346702]
[1625636948319,0.012515,34769.0,34768.0,0.65018384]
[1625636948499,0.012515,34769.0,34768.0,0.48583614]
[1625636948859,0.012515,34770.0,34768.0,0.48583614]
[1625636949041,0.01251495,34769.0,34768.0,1.06281293]
[1625636949340,0.01251495,34769.0,34768.0,1.05805435]
[1625636949460,0.01251495,34769.0,34768.0,0.38291]
[1625636949641,1.36644641,34771.0,34768.0,0.7249478]
[1625636949942,0.01251501,34770.0,34769.0,0.25764281]
[1625636950062,0.01251501,34770.0,34769.0,0.08905335]
[1625636950063,1.36645435,34770.0,34769.0,0.08905335]
[1625636950181,1.36645435,34770.0,34769.0,0.32962879]
[1625636950302,1.36645435,34770.0,34769.0,0.49827922]
[1625636952586,1.36645435,34770.0,34769.0,0.75143795]
[1625636953367,1.36645435,34770.0,34769.0,0.58278752]
[1625636953789,1.36645435,34770.0,34769.0,0.24533406]
[1625636954330,1.36645435,34770.0,34769.0,0.92050594]
[1625636960823,1.36645435,34770.0,34769.0,1.92912139]
[1625636963647,0.01251501,34770.0,34769.0,3.10514231]
[1625636964128,0.01251501,34770.0,34769.0,1.92912139]
[1625636964550,0.01251501,34770.0,34769.0,3.10502311]
[1625636965093,0.01249287,34771.0,34769.0,3.10502311]
[1625636965271,1.3691452,34771.0,34770.0,1.67953116]
[1625636965393,1.35665233,34771.0,34770.0,1.67953116]
[1625636965511,1.35664177,34772.0,34770.0,1.67953116]
[1625636965632,0.01249272,34771.0,34770.0,1.68429777]
[1625636965752,0.01249272,34771.0,34770.0,0.00476661]
[1625636966112,1.36913651,34771.0,34770.0,1.68436608]
[1625636966294,0.01249272,34771.0,34770.0,1.68436608]
[1625636966474,1.36903807,34771.0,34770.0,1.68436608]
[1625636974167,1.36903807,34771.0,34770.0,5.46886608]
[1625636976871,1.36903807,34771.0,34770.0,6.64624015]
[1625636980476,1.35654535,34771.0,34770.0,6.64624015]
[1625636980654,1.36902158,34771.0,34770.0,6.64624015]
[1625636980774,1.36902158,34771.0,34770.0,4.96664068]
[1625636980895,1.36902158,34771.0,34770.0,6.65180793]
[1625636996227,1.36902158,34771.0,34770.0,7.15795706]
[1625636999294,1.36902158,34771.0,34770.0,8.50752746]
[1625636999954,1.36902158,34771.0,34770.0,4.72302746]
[1625637000315,1.36902158,34771.0,34770.0,3.37345706]
[1625637001877,1.36902158,34771.0,34770.0,4.7234081]
[1625637001999,1.36902158,34771.0,34770.0,5.0216681]
[1625637006749,1.36902158,34771.0,34770.0,5.1146681]
[1625637006931,1.36902158,34771.0,34770.0,5.1645681]
[1625637013545,0.01247623,34771.0,34770.0,0.44592661]
[1625637013665,0.01247623,34771.0,34770.0,0.14766661]
[1625637013784,0.01247623,34771.0,34770.0,4.8886189]
[1625637013785,1.37166125,34771.0,34770.0,4.8886189]
[1625637013905,1.35918502,34771.0,34770.0,4.8886189]
[1625637014267,1.3716883,34771.0,34770.0,4.8886189]
[1625637015647,1.3716883,34771.0,34770.0,5.2204789]
[1625637015947,1.35918502,34771.0,34770.0,5.21571229]
[1625637016310,1.3716883,34771.0,34770.0,5.22047501]
[1625637017573,0.01250328,34771.0,34770.0,6.74373247]
[1625637017932,0.01250335,34772.0,34770.0,6.74373247]
[1625637018052,1.37165111,34772.0,34771.0,4.7392718]
[1625637018173,1.35914776,34772.0,34771.0,4.7392718]
[1625637018294,1.35914568,34773.0,34771.0,4.7392718]
[1625637018415,0.01250333,34772.0,34771.0,4.74403455]
[1625637018536,0.01250333,34772.0,34771.0,0.00476275]
[1625637018782,1.37164901,34772.0,34771.0,4.7440668]
[1625637023826,1.37164901,34772.0,34771.0,5.0050568]
[1625637024068,1.37164901,34772.0,34771.0,5.0921568]
[1625637024551,1.37164901,34772.0,34771.0,5.0050568]
[1625637024974,0.01250333,34772.0,34771.0,5.0050568]
[1625637031643,0.01250333,34772.0,34771.0,4.7440668]
[1625637032184,1.37121549,34772.0,34771.0,4.7440668]
[1625637032545,1.35871216,34772.0,34771.0,4.7440668]
[1625637033392,1.35867779,34773.0,34771.0,4.7440668]
[1625637033509,1.35867779,34773.0,34771.0,0.00476275]
[1625637033630,1.35867779,34773.0,34772.0,4.74245553]
[1625637034050,1.37114566,34773.0,34772.0,4.74722885]
[1625637034410,1.35867779,34773.0,34772.0,4.74722885]
[1625637035074,1.35867779,34773.0,34772.0,4.98780429]
[1625637036879,1.35867779,34773.0,34772.0,5.21111429]
[1625637046378,1.35867779,34773.0,34772.0,4.98780429]
[1625637046618,1.37114582,34773.0,34772.0,4.98780429]
[1625637047099,1.37114582,34773.0,34772.0,8.53980429]
[1625637049753,1.37114582,34773.0,34772.0,8.86308429]
[1625637050534,1.35867779,34773.0,34772.0,8.86308429]
[1625637051912,1.37115462,34773.0,34772.0,8.86308429]
[1625637055884,1.37115462,34773.0,34772.0,8.62250885]
[1625637057327,1.37115462,34773.0,34772.0,9.34423517]
[1625637066106,0.01247683,34773.0,34772.0,10.86703044]
[1625637066707,1.35941493,34775.0,34772.0,10.86703044]
[1625637066708,0.01247646,34774.0,34772.0,10.86703044]
[1625637066826,0.01247646,34774.0,34772.0,11.00993044]
[1625637067008,0.01247646,34774.0,34773.0,6.26341077]
[1625637067249,1.3591484,34778.0,34773.0,6.26341077]
[1625637067368,1.3591484,34778.0,34777.0,0.48115088]
[1625637067488,1.52894917,34782.0,34777.0,5.37840656]
[1625637067728,1.52894917,34782.0,34781.0,3.70353442]
[1625637067915,1.52893056,34783.0,34781.0,3.70353442]
[1625637068148,1.52893056,34783.0,34782.0,3.37644311]
[1625637068508,1.52893056,34783.0,34782.0,3.38122781]
[1625637068628,1.52893056,34783.0,34782.0,2.19947272]
[1625637068629,1.54134015,34783.0,34782.0,2.19947272]
[1625637069050,1.54134015,34783.0,34782.0,3.38060766]
[1625637069288,1.54134015,34783.0,34782.0,2.19947272]
[1625637069409,1.54134015,34783.0,34782.0,2.6806236]
[1625637070433,1.54134015,34783.0,34782.0,3.86164841]
[1625637070673,0.01240959,34783.0,34782.0,2.6806236]
[1625637072897,1.52753045,34784.0,34782.0,2.6806236]
[1625637073258,1.52706878,34785.0,34783.0,2.19127008]
[1625637073378,1.52706878,34785.0,34784.0,0.24057544]
[1625637073500,1.52706878,34785.0,34784.0,2.43141851]
[1625637073743,1.52706878,34785.0,34784.0,2.43620139]
[1625637073982,1.52716832,34786.0,34784.0,2.43620139]
[1625637074224,1.69673318,34791.0,34785.0,1.17970901]
[1625637074408,1.69673318,34791.0,34787.0,0.25277927]
[1625637074586,0.01245137,34790.0,34787.0,0.25277927]
[1625637074706,1.52669311,34788.0,34787.0,0.08425976]
[1625637075006,1.5391444,34788.0,34787.0,0.08425976]
[1625637075428,1.5391444,34788.0,34787.0,0.3248352]
[1625637075549,1.5391444,34788.0,34787.0,0.24057544]
[1625637080296,1.5391444,34788.0,34783.0,1.01086245]
[1625637080297,1.8420044,34788.0,34781.0,1.17913266]
[1625637080417,0.01245211,34787.0,34777.0,1.17983137]
[1625637080660,1.18679081,34778.0,34775.0,1.18047529]
[1625637080838,5.0623,34776.0,34775.0,1.18047529]
[1625637081016,5.0623,34776.0,34772.0,0.1429]
[1625637081017,6.24915555,34776.0,34774.0,1.18086477]
[1625637081319,6.24915555,34776.0,34775.0,0.00478382]
[1625637081497,6.02460176,34776.0,34775.0,0.00478382]
[1625637081676,7.21150553,34776.0,34775.0,0.00478382]
[1625637081798,7.21150553,34776.0,34774.0,1.18583629]
[1625637082037,7.21150553,34776.0,34775.0,0.00478439]
[1625637082157,6.02460176,34776.0,34775.0,0.00478439]
[1625637082337,8.56786277,34776.0,34775.0,0.00478439]
[1625637087807,7.2114682,34776.0,34775.0,1.18562907]
[1625637096047,7.2114682,34776.0,34775.0,1.18564795]
[1625637096347,6.02460176,34776.0,34775.0,1.18564795]
[1625637096465,7.21160309,34776.0,34775.0,1.18564795]
[1625637100918,8.56834253,34776.0,34775.0,1.18564795]
[1625637101398,8.56834253,34776.0,34775.0,0.00480327]
[1625637106446,8.56834253,34776.0,34775.0,1.18650382]
[1625637109152,8.58075147,34776.0,34775.0,1.18650382]
[1625637110533,9.59856495,34776.0,34775.0,2.19940388]
[1625637125987,9.59856495,34776.0,34775.0,1.01770333]
[1625637126769,9.59856495,34776.0,34775.0,1.16060333]
[1625637128029,4.53626495,34776.0,34775.0,1.16060333]
[1625637130973,4.53626495,34776.0,34775.0,2.34440124]
[1625637136623,4.85476495,34776.0,34775.0,2.34440124]
[1625637138547,4.53626495,34776.0,34775.0,3.69800574]
[1625637139088,3.16711657,34776.0,34775.0,5.21842257]
[1625637139268,4.52592883,34776.0,34775.0,3.69800574]
[1625637139388,4.5383468,34776.0,34775.0,3.69800574]
[1625637139627,9.1733468,34776.0,34775.0,3.69800574]
[1625637139756,9.4977068,34776.0,34775.0,3.69800574]
[1625637140469,9.4977068,34776.0,34775.0,4.37503905]
[1625637146844,4.8627068,34776.0,34775.0,4.37503905]
[1625637148346,5.5424922,34776.0,34775.0,4.37503905]
[1625637154539,5.53007423,34776.0,34775.0,4.37503905]
[1625637154659,4.85028883,34776.0,34775.0,4.37503905]
[1625637154780,4.52592883,34776.0,34775.0,4.37503905]
[1625637155260,4.5383478,34776.0,34775.0,4.37503905]
[1625637155861,4.7891078,34776.0,34775.0,4.37503905]
[1625637158625,4.5383478,34776.0,34775.0,4.37503905]
[1625637160500,4.5383478,34776.0,34775.0,4.59269905]
[1625637160680,3.17953554,34776.0,34775.0,4.59269905]
[1625637160860,3.16711657,34776.0,34775.0,11.2419987]
[1625637161341,3.16711657,34776.0,34775.0,9.71869905]
[1625637162241,3.16711657,34776.0,34775.0,11.24188181]
[1625637162542,3.16711657,34776.0,34775.0,9.71869905]
[1625637163444,3.16711657,34776.0,34775.0,11.24152799]
[1625637165667,1.98011524,34776.0,34775.0,11.24152799]
[1625637168435,0.96230176,34776.0,34775.0,11.24152799]
[1625637170356,0.96230176,34776.0,34775.0,11.7484559]
[1625637171498,1.64131454,34776.0,34775.0,11.7484559]
[1625637171858,0.96230176,34776.0,34775.0,11.7484559]
[1625637172220,0.96230176,34776.0,34775.0,11.98903134]
[1625637172339,0.96230176,34776.0,34775.0,6.86303134]
[1625637173121,0.67898878,34778.0,34775.0,6.86303134]
[1625637173304,0.67898878,34778.0,34776.0,0.0858]
[1625637173480,0.67898878,34778.0,34777.0,6.24569834]
[1625637173600,0.67898878,34778.0,34777.0,11.30619603]
[1625637174200,0.67898878,34778.0,34777.0,11.78734691]
[1625637174743,1.1875957,34781.0,34777.0,11.78734691]
[1625637174862,1.35720699,34783.0,34777.0,11.78734691]
[1625637174863,1.18752829,34783.0,34778.0,0.00479734]
[1625637175164,1.93697173,34794.0,34782.0,1.85417785]
[1625637175165,1.35711718,34787.0,34782.0,1.85417785]
[1625637175402,1.35711718,34787.0,34786.0,0.84863077]
[1625637175765,1.35711718,34787.0,34786.0,0.8534278]
[1625637175886,1.35704822,34788.0,34786.0,2.2012728]
[1625637176185,1.35704822,34788.0,34787.0,0.72652335]
[1625637176306,1.35704822,34788.0,34787.0,1.2318303]
[1625637178771,1.35595802,34789.0,34787.0,1.2318303]
[1625637179011,1.35595802,34789.0,34788.0,0.50524075]
[1625637179195,1.35595802,34789.0,34788.0,0.51003993]
[1625637180271,1.35595802,34789.0,34788.0,0.50524075]
[1625637181891,1.35551791,34790.0,34788.0,0.51003982]
[1625637182131,1.35551791,34790.0,34789.0,0.50572696]
[1625637182616,1.52542685,34793.0,34789.0,0.50572696]
[1625637182859,1.51832685,34793.0,34789.0,0.51052526]
[1625637182976,1.52471743,34798.0,34792.0,0.50477363]
[1625637183097,1.52471743,34798.0,34792.0,0.80400363]
[1625637183217,0.057,34800.0,34796.0,0.5045919]
[1625637183335,1.69398199,34804.0,34796.0,0.5045919]
[1625637183457,1.9344843,34806.0,34798.0,0.50433943]
[1625637183575,1.69390886,34806.0,34798.0,0.50433943]
[1625637183696,0.01240542,34803.0,34798.0,0.50433943]
[1625637183817,0.01240542,34803.0,34797.0,0.50862222]
[1625637183939,0.01240558,34805.0,34797.0,0.50382498]
[1625637184058,0.01240558,34805.0,34792.0,0.29923]
[1625637184059,0.01240558,34805.0,34799.0,0.82341088]
[1625637184179,0.01240571,34802.0,34799.0,0.82341088]
[1625637184541,0.30998087,34808.0,34801.0,0.50321295]
[1625637184779,0.29757544,34808.0,34802.0,0.50300852]
[1625637184965,0.01240488,34807.0,34802.0,0.50300852]
[1625637185450,0.01240488,34807.0,34804.0,0.50273357]
[1625637185680,0.01240488,34807.0,34805.0,0.50260256]
[1625637185800,0.057,34812.0,34805.0,0.50260256]
[1625637185920,0.057,34812.0,34803.0,0.50184964]
[1625637186039,0.01240404,34811.0,34803.0,0.50184964]
[1625637186280,0.24057544,34815.0,34810.0,1.06485632]
[1625637186821,0.01240307,34814.0,34810.0,1.06485632]
[1625637188203,0.24057544,34815.0,34810.0,1.06485632]
[1625637188323,0.24057544,34815.0,34814.0,0.24057544]
[1625637193311,0.24057544,34815.0,34814.0,0.32667544]
[1625637194275,0.29757544,34818.0,34814.0,0.32667544]
[1625637194394,0.24057544,34818.0,34814.0,0.32667544]
[1625637196326,0.24057544,34818.0,34817.0,0.24057544]
[1625637196506,0.24057544,34818.0,34817.0,0.46963544]
[1625637200350,0.24057544,34818.0,34817.0,0.55453544]
[1625637202038,1.51164465,34826.0,34817.0,0.61153544]
[1625637202275,1.51145972,34833.0,34818.0,0.5]
[1625637202395,1.51145972,34833.0,34832.0,0.96230176]
[1625637202518,1.51116969,34840.0,34832.0,1.23043176]
[1625637202761,0.9661,34842.0,34832.0,1.23043176]
[1625637202879,0.9661,34842.0,34832.0,5.51573176]
[1625637203725,0.9661,34842.0,34833.0,0.0855]
[1625637204205,0.9661,34842.0,34832.0,5.51573176]
[1625637204323,0.9661,34842.0,34841.0,0.72172632]
[1625637204445,0.9661,34842.0,34841.0,1.04955632]
[1625637212140,0.9661,34842.0,34841.0,0.99255632]
[1625637212257,0.9661,34842.0,34841.0,0.72172632]
[1625637212377,0.9661,34842.0,34832.0,0.24057544]
[1625637213219,0.9661,34842.0,34841.0,3.8613]
[1625637213399,0.9661,34842.0,34841.0,4.17509]
[1625637214180,0.24057544,34843.0,34841.0,4.17509]
[1625637214358,0.24057544,34843.0,34842.0,0.48115088]
[1625637214779,0.24057544,34843.0,34842.0,0.53815088]
[1625637215320,0.24057544,34847.0,34842.0,0.53815088]
[1625637215501,0.00052355,34848.0,34842.0,0.53815088]
[1625637216522,0.00052355,34848.0,34847.0,0.29757544]
[1625637227937,0.00052355,34848.0,34847.0,0.38447544]
[1625637228306,0.00052355,34848.0,34847.0,0.29757544]
[1625637232269,0.00052355,34848.0,34847.0,0.30237863]
[1625637240082,0.00052355,34848.0,34847.0,0.52757863]
[1625637246817,0.00052355,34848.0,34847.0,0.67047863]
[1625637249884,0.00052355,34848.0,34847.0,0.75557863]
[1625637250124,0.01288311,34848.0,34847.0,0.75557863]
[1625637250484,0.00052355,34848.0,34847.0,0.75557863]
[1625637250786,0.01288323,34848.0,34847.0,0.75557863]
[1625637250906,0.01288323,34848.0,34847.0,0.67047863]
[1625637257336,0.01288323,34848.0,34847.0,0.44527863]
[1625637258838,0.33147323,34848.0,34847.0,0.44527863]
[1625637259077,0.33147323,34848.0,34847.0,0.38827863]
[1625637259737,0.33147323,34848.0,34847.0,0.14770319]
[1625637260757,0.57204867,34848.0,34847.0,0.14770319]
[1625637260878,0.57204867,34848.0,34847.0,0.1429]
[1625637261777,0.57204867,34848.0,34840.0,0.57737269]
[1625637262018,1.52189365,34845.0,34842.0,0.08273339]
[1625637262257,1.52195327,34844.0,34841.0,0.00481254]
[1625637262558,1.52195327,34844.0,34838.0,0.08281844]
[1625637262559,1.52202263,34842.0,34838.0,0.08281844]
[1625637262798,0.96314632,34839.0,34837.0,0.08283206]
[1625637263038,0.96314632,34839.0,34836.0,0.57983152]
[1625637263338,0.01233297,34838.0,34836.0,0.2485033]
[1625637263519,0.01233297,34838.0,34835.0,0.24852628]
[1625637263820,0.01233297,34838.0,34835.0,0.08284209]
[1625637263998,0.01233297,34838.0,34835.0,0.24861618]
[1625637264539,1.52237971,34838.0,34835.0,0.24861618]
[1625637264722,0.24057544,34836.0,34835.0,0.24861618]
[1625637264900,0.24057544,34836.0,34835.0,0.08284209]
[1625637265139,0.24057544,34836.0,34834.0,0.57993167]
[1625637265320,0.24057544,34836.0,34796.0,3.01282728]
[1625637265441,0.24057544,34836.0,34801.0,0.9211]
[1625637265621,1.1836581,34833.0,34828.0,1.16013989]
[1625637265861,1.18378219,34832.0,34829.0,0.00481482]
[1625637266040,1.46274219,34832.0,34829.0,0.00481482]
[1625637266461,1.46274219,34832.0,34828.0,1.16013989]
[1625637266822,0.48115088,34829.0,34827.0,1.3262746]
[1625637267062,0.48115088,34829.0,34828.0,1.15998696]
[1625637267311,0.48115088,34829.0,34828.0,1.16480151]
[1625637268269,0.48115088,34829.0,34828.0,1.15998696]
[1625637269835,0.48115088,34829.0,34827.0,1.15994116]
[1625637270320,0.48115088,34829.0,34826.0,1.16017533]
[1625637271882,0.48115088,34829.0,34825.0,1.15976341]
[1625637272182,0.48115088,34829.0,34826.0,1.15957583]
[1625637272783,0.24057544,34828.0,34826.0,1.15957583]
[1625637273207,0.24057544,34828.0,34825.0,1.15751964]
[1625637273444,0.24057544,34831.0,34826.0,0.057]
[1625637273627,1.18261323,34832.0,34826.0,0.057]
[1625637273746,1.18211091,34837.0,34830.0,0.057]
[1625637273985,1.18188909,34841.0,34834.0,1.15374896]
[1625637274168,1.18188909,34841.0,34835.0,0.057]
[1625637274284,1.18176476,34844.0,34840.0,4.1027]
[1625637274405,1.18176476,34844.0,34841.0,0.057]
[1625637274526,2.12735344,34847.0,34841.0,0.39441]
[1625637274764,2.12735344,34847.0,34846.0,0.48115088]
[1625637275665,2.12735344,34847.0,34846.0,0.53815088]
[1625637275907,2.12735344,34847.0,34846.0,0.48115088]
[1625637279696,3.47796573,34847.0,34846.0,0.48115088]
[1625637280717,3.47796573,34847.0,34840.0,0.29757544]
[1625637280836,3.47796573,34847.0,34838.0,1.15101117]
[1625637280837,0.48115088,34841.0,34838.0,1.15101117]
[1625637281077,1.18201463,34840.0,34836.0,0.24057544]
[1625637281499,1.18204543,34839.0,34836.0,0.24057544]
[1625637281977,1.18204543,34839.0,34833.0,0.057]
[1625637282097,1.18204543,34839.0,34832.0,1.1532611]
[1625637282338,1.18203979,34837.0,34830.0,1.15402795]
[1625637282637,1.18204181,34836.0,34831.0,0.00481464]
[1625637282878,0.81589088,34832.0,34831.0,0.00481464]
[1625637283000,0.81589088,34832.0,34830.0,1.15810197]
[1625637283238,0.81589088,34832.0,34830.0,1.1532873]
[1625637283417,0.81589088,34832.0,34831.0,0.057]
[1625637284140,0.81589088,34832.0,34829.0,1.15373944]
[1625637284501,0.81589088,34832.0,34830.0,0.00481469]
[1625637284801,0.81589088,34832.0,34828.0,1.15397499]
[1625637285041,0.81589088,34832.0,34830.0,0.00481478]
[1625637285342,0.81589088,34832.0,34829.0,0.00481476]
[1625637285582,0.81589088,34832.0,34829.0,1.15344186]
[1625637285882,0.81589088,34832.0,34830.0,0.00481471]
[1625637286125,0.81589088,34832.0,34829.0,1.15829281]
[1625637286242,0.81589088,34832.0,34830.0,0.057]
[1625637286363,0.81589088,34832.0,34831.0,0.00481473]
[1625637287510,0.81589088,34832.0,34830.0,0.00481503]
[1625637287868,0.81589088,34832.0,34828.0,1.15357498]
[1625637287989,0.81589088,34832.0,34828.0,4.17]
[1625637288414,0.81589088,34832.0,34829.0,0.00481178]
[1625637288532,0.81589088,34832.0,34829.0,0.06181178]
[1625637288892,0.81589088,34832.0,34830.0,0.00481186]
[1625637289433,0.81589088,34832.0,34829.0,0.00481184]
[1625637289672,0.81589088,34832.0,34831.0,0.00481176]
[1625637289914,0.81589088,34832.0,34830.0,0.00481176]
[1625637290335,0.81589088,34832.0,34831.0,0.00481171]
[1625637290759,0.81589088,34832.0,34830.0,0.00481168]
[1625637293339,0.48115088,34832.0,34830.0,0.00481168]
[1625637293459,0.48115088,34832.0,34831.0,1.15220458]
[1625637293585,0.48115088,34832.0,34831.0,1.20920458]
[1625637293700,0.48115088,34832.0,34831.0,2.52536371]
[1625637293885,0.48115088,34832.0,34831.0,1.20920458]
[1625637294003,0.48115088,34832.0,34831.0,1.21401768]
[1625637294422,0.48115088,34832.0,34831.0,0.0618131]
[1625637294542,0.48115088,34832.0,34831.0,0.0048131]
[1625637295506,0.48115088,34832.0,34831.0,0.99289392]
[1625637295626,0.48115088,34832.0,34831.0,1.04989392]
[1625637295808,0.48115088,34832.0,34831.0,0.99289392]
[1625637296108,0.48115088,34832.0,34831.0,0.0048131]
[1625637296829,0.48115088,34832.0,34831.0,0.0618131]
[1625637297070,0.48115088,34832.0,34831.0,1.05008927]
[1625637297374,0.48115088,34832.0,34831.0,0.0618131]
[1625637297493,0.48115088,34832.0,34831.0,1.05012819]
[1625637298516,0.48115088,34832.0,34831.0,2.20235506]
[1625637300922,0.48115088,34832.0,34831.0,2.4429305]
[1625637301042,0.48115088,34832.0,34831.0,0.30238854]
[1625637301344,0.48115088,34832.0,34831.0,2.44286373]
[1625637305612,0.48115088,34832.0,34831.0,3.75904666]
[1625637306332,0.48115088,34832.0,34831.0,5.2388037]
[1625637306451,1.18173224,34843.0,34831.0,5.2388037]
[1625637306574,1.18177894,34844.0,34831.0,5.2388037]
[1625637306753,1.18177894,34844.0,34839.0,0.98616454]
[1625637306872,1.18177894,34844.0,34840.0,0.057]
[1625637306992,0.48115088,34841.0,34840.0,0.29757544]
[1625637307174,0.48115088,34841.0,34840.0,0.30238763]
[1625637307413,0.48115088,34841.0,34840.0,1.29024739]
[1625637309885,0.48115088,34841.0,34840.0,0.99267195]
[1625637310066,0.78398088,34841.0,34840.0,0.00481219]
[1625637310545,1.9662574,34841.0,34839.0,0.00481113]
[1625637310784,1.18228128,34840.0,34839.0,0.00481113]
[1625637310905,1.18228128,34840.0,34837.0,0.00481121]
[1625637311084,1.66360035,34841.0,34839.0,0.00481106]
[1625637311384,0.48115088,34841.0,34839.0,0.057]
[1625637311689,1.66356303,34841.0,34840.0,0.00481097]
[1625637312947,0.48115088,34841.0,34840.0,0.00481097]
[1625637313190,1.66384312,34841.0,34840.0,0.00481097]
[1625637313734,0.48115088,34841.0,34840.0,0.00481097]
[1625637315656,1.66410651,34841.0,34840.0,0.00481097]
[1625637317097,1.66410651,34841.0,34840.0,0.06181097]
[1625637318178,0.48115088,34841.0,34840.0,0.06181097]
[1625637318421,0.48115088,34841.0,34840.0,1.05073203]
[1625637319018,0.48115088,34841.0,34840.0,1.29130747]
[1625637322208,0.48115088,34841.0,34840.0,2.44447732]
[1625637322509,0.48115088,34841.0,34840.0,1.29130747]
[1625637323409,0.48115088,34841.0,34840.0,2.44429446]
[1625637325100,0.48115088,34841.0,34840.0,1.29130747]
[1625637325340,0.48115088,34841.0,34840.0,1.95002264]
[1625637326003,0.48115088,34841.0,34840.0,3.10279499]
[1625637330028,0.24057544,34844.0,34840.0,3.10279499]
[1625637330268,0.24057544,34844.0,34843.0,1.64715584]
[1625637330390,0.24057544,34844.0,34843.0,1.93800584]
[1625637330509,0.24057544,34844.0,34843.0,3.09009498]
[1625637330749,0.24057544,34844.0,34843.0,3.09491131]
[1625637331172,0.24057544,34844.0,34843.0,3.33548675]
[1625637331530,0.24057544,34844.0,34843.0,7.71808675]